bitfinex/quotes_ETHUSD_20260216
["timestamp","ask_amount","ask_price","bid_price","bid_amount"]
[1771236128768,0.47274071,1987.9,1987.3,7.7798639]
[1771236128971,0.47274071,1987.9,1987.3,0.48720992]
[1771236129681,0.47274071,1987.9,1987.2,0.48720992]
[1771236131068,1.653,1988.0,1987.2,0.48720992]
[1771236131268,0.748,1987.9,1987.4,0.48720992]
[1771236132351,0.748,1987.9,1987.3,7.29265398]
[1771236132663,1.22074071,1987.9,1987.3,7.29265398]
[1771236132875,0.47274071,1987.8,1987.3,7.29265398]
[1771236133171,0.47274071,1987.8,1987.0,7.29265398]
[1771236133981,0.748,1987.9,1987.3,0.51685272]
[1771236134556,0.748,1987.9,1987.4,7.8095067]
[1771236135251,0.748,1987.9,1987.4,7.29265398]
[1771236136278,0.51608992,1987.8,1987.2,7.8095067]
[1771236136578,0.51608992,1987.8,1987.0,7.8095067]
[1771236138780,0.51608992,1988.0,1987.3,0.51685272]
[1771236138983,0.748,1987.9,1987.3,0.51685272]
[1771236140588,1.26408992,1987.9,1987.3,0.51685272]
[1771236141395,1.26408992,1987.9,1987.2,7.29265398]
[1771236141717,0.51608992,1987.8,1987.2,7.29265398]
[1771236143100,0.51608992,1987.8,1987.1,0.51785272]
[1771236143280,0.51608992,1987.8,1987.1,0.001]
[1771236143602,0.51608992,1987.8,1987.1,0.51785272]
[1771236143772,0.748,1987.9,1987.3,0.51685272]
[1771236144897,1.26408992,1987.9,1987.1,0.001]
[1771236145105,1.26408992,1987.9,1987.1,0.51785272]
[1771236145270,0.51608992,1987.8,1987.1,0.001]
[1771236147516,0.748,1987.9,1987.1,0.51785272]
[1771236147809,1.26408992,1987.9,1987.1,0.51785272]
[1771236149004,1.26408992,1987.9,1987.0,0.001]
[1771236149005,0.51608992,1987.8,1987.0,0.001]
[1771236149787,0.51608992,1987.7,1987.0,0.001]
[1771236151912,0.51608992,1987.6,1987.1,0.001]
[1771236152399,0.51608992,1987.5,1986.8,0.001]
[1771236152599,0.51718992,1987.7,1986.8,0.51785272]
[1771236153734,0.51718992,1987.7,1987.0,0.51685272]
[1771236153735,0.0011,1987.7,1987.0,0.51685272]
[1771236158729,1e-08,1987.9,1987.0,0.51685272]
[1771236158922,0.0011,1988.0,1987.0,0.51685272]
[1771236159724,0.0011,1988.0,1987.2,0.51685272]
[1771236160017,0.0011,1988.0,1987.4,0.51685272]
[1771236162313,0.51718992,1988.0,1987.1,0.51685272]
[1771236163211,0.51718992,1988.0,1986.8,0.51785272]
[1771236163212,0.51608992,1987.8,1986.8,0.51785272]
[1771236163431,0.51608992,1987.7,1986.8,0.51785272]
[1771236164741,0.51608992,1987.7,1987.1,0.001]
[1771236165024,0.48616241,1987.6,1987.1,0.001]
[1771236167301,0.743,1987.5,1987.1,0.001]
[1771236170729,1.22444447,1987.5,1986.7,0.4958955]
[1771236170945,0.48144447,1987.4,1986.5,0.4958955]
[1771236171838,0.42678328,1987.3,1986.3,0.4958955]
[1771236172705,0.743,1987.5,1986.3,0.4958955]
[1771236173415,3.681797,1987.4,1986.3,0.4958955]
[1771236173736,0.744,1987.4,1986.3,0.4958955]
[1771236174512,1.17124545,1987.4,1986.3,0.4958955]
[1771236174913,0.42747275,1987.3,1986.3,0.4958955]
[1771236175651,0.744,1987.4,1986.3,0.4958955]
[1771236177025,0.907,1987.6,1986.3,0.4958955]
[1771236177026,3.229841,1987.6,1986.3,0.4958955]
[1771236177220,0.516,1987.6,1986.3,0.4958955]
[1771236177427,2.92129359,1987.5,1986.3,0.4958955]
[1771236177624,0.42792459,1987.5,1986.5,0.4958955]
[1771236177826,0.0011,1987.3,1986.5,0.4958955]
[1771236184255,0.43051201,1987.3,1986.5,0.4958955]
[1771236184863,0.0011,1987.3,1986.5,0.4958955]
[1771236186040,0.43091844,1987.3,1986.5,0.4958955]
[1771236188031,0.0011,1987.3,1986.5,0.4958955]
[1771236189646,0.43151309,1987.3,1986.5,0.4958955]
[1771236193980,0.43151309,1987.3,1986.6,0.48629693]
[1771236194144,0.0011,1987.3,1986.6,0.48629693]
[1771236194352,0.0011,1987.3,1986.8,0.48629693]
[1771236199782,0.0011,1987.3,1986.7,7.3066746]
[1771236199988,0.48605275,1987.3,1986.7,7.3066746]
[1771236200882,0.48605275,1987.3,1986.7,7.79297153]
[1771236201884,0.0011,1987.3,1986.8,0.48629693]
[1771236202087,0.0011,1987.4,1987.0,0.48629693]
[1771236202867,0.0011,1987.6,1987.1,7.79297153]
[1771236203173,0.0011,1987.6,1987.2,0.48629693]
[1771236203376,0.0011,1987.9,1987.3,7.79297153]
[1771236203580,0.0011,1987.9,1987.3,7.3066746]
[1771236203769,0.0011,1987.9,1987.4,0.48629693]
[1771236205285,0.48605275,1987.9,1987.1,0.48629693]
[1771236205459,0.48495275,1987.7,1986.9,0.48629693]
[1771236205655,0.48495275,1987.5,1986.7,0.48629693]
[1771236205869,0.738,1987.6,1987.0,0.48629693]
[1771236206163,0.0011,1987.3,1987.0,0.48629693]
[1771236209194,0.00110001,1987.5,1987.1,0.48629693]
[1771236210977,0.00110001,1987.5,1986.9,0.48629693]
[1771236211177,0.48605276,1987.5,1986.8,0.001]
[1771236211899,0.48605276,1987.5,1986.5,0.001]
[1771236212209,0.48495275,1987.3,1986.5,0.001]
[1771236214100,0.48495275,1987.3,1986.5,0.48729693]
[1771236214972,0.48495275,1987.3,1986.5,0.001]
[1771236215169,0.00110001,1987.2,1986.5,0.001]
[1771236215785,0.00110001,1987.2,1986.5,0.48729693]
[1771236219897,0.48605276,1987.2,1986.6,0.001]
[1771236221091,0.48495275,1987.0,1986.4,0.001]
[1771236221297,0.48495275,1987.0,1986.1,0.48629693]
[1771236222412,0.48495275,1987.2,1986.1,0.48629693]
[1771236223587,0.0011,1987.3,1986.1,0.48629693]
[1771236224189,0.00110001,1987.1,1986.1,0.48629693]
[1771236225323,0.4758365,1987.1,1986.1,0.48629693]
[1771236226633,0.4758365,1987.1,1985.8,0.49031842]
[1771236227329,0.00110001,1987.1,1986.0,0.51029147]
[1771236227534,0.00110001,1987.1,1986.1,0.51029147]
[1771236229131,0.51703316,1987.1,1986.1,0.51029147]
[1771236229833,0.00110001,1987.1,1986.1,0.51029147]
[1771236232838,0.00110001,1987.1,1986.3,0.51029147]
[1771236233011,0.00220001,1987.1,1986.3,0.51029147]
[1771236233613,0.00220001,1987.1,1986.2,0.001]
[1771236233614,0.00220001,1987.1,1986.5,0.51029147]
[1771236233912,0.00220001,1987.1,1986.6,0.51029147]
[1771236234111,0.0011,1987.3,1986.6,0.51029147]
[1771236234743,0.0011,1987.3,1986.7,0.915]
[1771236234931,0.0011,1987.3,1986.7,1.42529147]
[1771236235721,0.0011,1987.3,1986.8,0.51029147]
[1771236238441,0.0011,1987.3,1986.2,0.18785624]
[1771236238627,0.0011,1987.3,1986.5,0.51029147]
[1771236245352,1e-08,1987.4,1986.5,0.51029147]
[1771236246433,0.0011,1987.2,1986.5,0.51029147]
[1771236252056,0.0011,1987.2,1986.6,0.51029147]
[1771236253553,0.0011,1987.2,1986.8,0.49503889]
[1771236256743,0.0011,1987.2,1987.0,0.49503889]
[1771236259535,0.0011,1987.3,1987.0,0.49503889]
[1771236261469,0.0011,1987.3,1986.9,0.49503889]
[1771236261967,0.0011,1987.3,1986.7,8.71787308]
[1771236262735,0.41712592,1987.3,1986.7,8.71787308]
[1771236263740,0.41712592,1987.3,1986.7,7.80087308]
[1771236263943,0.41712592,1987.3,1986.8,0.918]
[1771236264838,0.41712592,1987.3,1986.6,0.001]
[1771236266472,0.41712592,1987.3,1986.6,0.49603889]
[1771236266770,0.0011,1987.3,1986.8,0.49503889]
[1771236267566,0.0011,1987.3,1986.7,7.30583419]
[1771236267771,0.0011,1987.3,1986.8,0.52281159]
[1771236268465,0.40245184,1987.2,1986.8,0.52281159]
[1771236268665,0.0011,1987.3,1986.8,0.52281159]
[1771236268666,0.40245184,1987.1,1986.8,0.52281159]
[1771236268966,0.0011,1987.3,1986.7,7.30583419]
[1771236269154,0.40245185,1987.2,1986.7,7.30583419]
[1771236269467,0.40245185,1987.1,1986.7,7.30583419]
[1771236269649,0.00251673,1987.3,1986.7,7.30583419]
[1771236269850,0.40244504,1987.2,1986.6,0.52381159]
[1771236270049,0.40244504,1987.1,1986.6,0.52381159]
[1771236270245,0.00251673,1987.3,1986.6,0.52381159]
[1771236270564,0.40244078,1987.2,1986.6,0.52381159]
[1771236270743,0.40244078,1987.1,1986.6,0.52381159]
[1771236271065,0.00251673,1987.3,1986.6,0.52381159]
[1771236271369,0.40243792,1987.2,1986.6,0.52381159]
[1771236271570,0.40243792,1987.1,1986.6,0.52381159]
[1771236271774,0.00251673,1987.3,1986.6,0.52381159]
[1771236271954,0.40243519,1987.2,1986.8,0.001]
[1771236272155,0.40243519,1987.1,1986.8,0.001]
[1771236272343,0.0011,1987.2,1986.8,0.001]
[1771236272544,0.40243092,1987.1,1986.8,0.001]
[1771236272745,0.0011,1987.2,1986.8,0.001]
[1771236272946,0.40243093,1987.1,1986.8,0.001]
[1771236273142,0.0011,1987.2,1986.8,0.001]
[1771236273477,0.40242755,1987.1,1986.8,0.001]
[1771236273657,0.0011,1987.2,1986.8,0.001]
[1771236273979,0.40242755,1987.1,1986.8,0.001]
[1771236274672,0.0011,1987.2,1986.8,0.001]
[1771236274877,0.40242603,1987.1,1986.8,0.001]
[1771236275077,0.0011,1987.2,1986.8,0.001]
[1771236275370,0.40242541,1987.1,1986.8,0.001]
[1771236275576,0.0011,1987.2,1986.8,0.001]
[1771236275778,0.40242575,1987.1,1986.8,0.001]
[1771236275977,0.0011,1987.2,1986.8,0.001]
[1771236276177,0.40242575,1987.1,1986.8,0.001]
[1771236276477,0.0011,1987.2,1986.8,0.001]
[1771236276676,0.40242544,1987.1,1986.8,0.001]
[1771236276880,0.0011,1987.2,1986.8,0.001]
[1771236277174,0.40242544,1987.1,1986.8,0.001]
[1771236277380,0.0011,1987.2,1986.8,0.52381159]
[1771236277678,0.40242523,1987.1,1986.8,0.52381159]
[1771236277878,0.0011,1987.2,1986.8,0.52381159]
[1771236278068,0.4024252,1987.1,1986.8,0.52381159]
[1771236278270,0.0011,1987.2,1986.8,0.52381159]
[1771236278464,0.40242726,1987.1,1986.8,0.52381159]
[1771236278669,0.0011,1987.2,1986.8,0.52381159]
[1771236278869,0.40242726,1987.1,1986.8,0.52381159]
[1771236279071,0.0011,1987.2,1986.8,0.52381159]
[1771236279262,0.40242727,1987.1,1986.8,0.52381159]
[1771236279467,0.0011,1987.2,1986.8,0.52381159]
[1771236279780,1e-08,1987.1,1986.8,0.52381159]
[1771236279987,0.0011,1987.2,1986.8,0.52381159]
[1771236280783,0.0011,1987.2,1986.7,7.30683419]
[1771236281263,0.49219357,1987.2,1986.7,7.30683419]
[1771236281460,0.49219357,1987.2,1986.7,0.001]
[1771236284586,0.49219357,1987.2,1986.5,0.001]
[1771236285558,0.49219357,1987.2,1986.8,0.001]
[1771236285979,0.50497664,1987.0,1986.5,0.001]
[1771236286284,0.50497664,1987.0,1986.7,0.001]
[1771236288061,0.50497664,1987.0,1986.2,0.47843752]
[1771236288062,0.51980755,1986.9,1986.2,0.47843752]
[1771236288363,1.23590755,1987.1,1986.4,0.51012027]
[1771236288564,1.23890755,1987.1,1986.4,0.51012027]
[1771236290574,1.23890755,1987.1,1986.5,7.81750677]
[1771236290774,0.0011,1987.1,1986.6,0.51012027]
[1771236294192,0.52090755,1987.1,1986.5,7.81750677]
[1771236294377,0.52090755,1987.1,1986.3,7.81750677]
[1771236296598,0.52090755,1987.1,1986.3,0.51012027]
[1771236297767,0.51980755,1987.0,1986.2,0.001]
[1771236297968,0.51980755,1987.0,1986.2,0.51112027]
[1771236298285,0.51980755,1987.0,1986.4,0.001]
[1771236298870,0.52090755,1987.0,1986.4,0.001]
[1771236299970,0.51980755,1986.8,1986.0,0.51012027]
[1771236300172,7.3073865,1986.9,1986.0,0.51012027]
[1771236300173,1.23880755,1986.7,1986.0,0.51012027]
[1771236302178,0.51980755,1986.6,1986.0,0.51012027]
[1771236302376,0.51980755,1986.6,1985.9,0.51012027]
[1771236303294,0.51980755,1986.6,1986.0,7.3073865]
[1771236303491,0.0011,1987.0,1986.5,7.81750677]
[1771236303708,0.0011,1987.0,1986.6,0.51012027]
[1771236310408,0.0011,1987.0,1986.4,7.81750677]
[1771236311581,0.0011,1986.9,1986.4,7.81750677]
[1771236313806,0.0011,1986.9,1986.5,0.50580551]
[1771236315990,0.0011,1986.9,1986.3,1.44480551]
[1771236316200,0.51692817,1986.9,1986.3,1.44480551]
[1771236317703,0.0011,1986.9,1986.5,0.50580551]
[1771236318607,0.0011,1986.9,1986.4,7.3073865]
[1771236318914,0.51692817,1986.9,1986.4,7.3073865]
[1771236319412,0.0011,1986.9,1986.4,7.81319201]
[1771236322014,0.0011,1986.9,1986.5,0.50580551]
[1771236332103,0.0011,1986.9,1986.7,0.50580551]
[1771236334921,0.0011,1987.0,1986.7,0.50580551]
[1771236335993,0.0011,1986.8,1986.7,0.50580551]
[1771236336321,0.0011,1986.9,1986.7,0.50580551]
[1771236336521,0.0011,1987.0,1986.7,0.50580551]
[1771236344731,0.0011,1987.1,1986.7,0.52829729]
[1771236347845,0.0011,1987.1,1986.8,0.001]
[1771236348163,0.0011,1986.9,1986.8,0.001]
[1771236348303,0.0011,1987.1,1986.8,7.85328754]
[1771236348817,0.0011,1987.0,1986.8,7.3083865]
[1771236349027,0.0011,1987.1,1986.8,7.3083865]
[1771236352032,0.0011,1987.1,1986.8,0.001]
[1771236360760,0.0011,1987.1,1986.9,0.001]
[1771236361059,0.0011,1987.0,1986.9,0.001]
[1771236361461,0.55273908,1987.0,1986.5,0.001]
[1771236361665,0.55163908,1986.8,1985.9,8.75655918]
[1771236361845,0.55163908,1986.6,1985.8,0.54490104]
[1771236362725,0.55163908,1986.5,1985.7,0.966]
[1771236362956,0.55163908,1986.4,1985.4,0.54490104]
[1771236363125,0.55163908,1986.4,1985.6,0.54490104]
[1771236363456,1.26063908,1986.4,1985.7,7.84955918]
[1771236363753,1.26063908,1986.4,1985.8,0.54490104]
[1771236364048,0.709,1986.4,1985.8,0.54490104]
[1771236364256,0.709,1986.4,1986.0,0.54490104]
[1771236365545,3.11125708,1986.8,1986.1,7.84955918]
[1771236365729,0.55163908,1986.8,1986.1,7.84955918]
[1771236365927,3.864171,1986.7,1986.1,7.84955918]
[1771236366855,0.55163908,1986.6,1986.0,0.54490104]
[1771236369655,0.55163908,1986.6,1985.7,0.54490104]
[1771236370154,0.55163908,1986.4,1985.5,0.54490104]
[1771236370343,1.26163908,1986.4,1985.5,0.54490104]
[1771236370666,0.55163908,1986.3,1985.5,0.54490104]
[1771236371527,0.55163908,1986.3,1985.7,0.54490104]
[1771236372258,0.71,1986.4,1985.7,0.54490104]
[1771236372454,0.55163908,1986.3,1985.7,0.54490104]
[1771236372632,0.55163908,1986.3,1985.6,7.85055918]
[1771236373029,0.55163908,1986.3,1985.7,0.54490104]
[1771236377064,0.71,1986.4,1986.0,7.83584365]
[1771236377364,0.0011,1986.5,1986.1,0.53118551]
[1771236377731,0.0011,1986.5,1986.2,7.83584365]
[1771236378188,0.71,1986.7,1986.3,0.53118551]
[1771236378363,0.907,1986.9,1986.5,0.53118551]
[1771236380754,0.907,1986.9,1986.7,0.53118551]
[1771236381032,0.0011,1987.0,1986.7,0.53118551]
[1771236382165,0.7111,1987.1,1986.7,0.53118551]
[1771236382369,0.0011,1987.1,1986.9,0.53118551]
[1771236383441,0.0011,1987.2,1986.9,0.53118551]
[1771236384141,0.0011,1987.4,1987.1,0.53118551]
[1771236387268,0.0011,1987.2,1987.1,0.53118551]
[1771236387657,0.0011,1987.2,1986.9,0.53118551]
[1771236387966,0.0011,1987.2,1986.9,1.51418551]
[1771236388336,0.0011,1987.2,1987.0,0.53118551]
[1771236392550,0.0011,1987.2,1986.9,0.53118551]
[1771236393664,0.0011,1987.2,1986.8,7.30565814]
[1771236393859,0.0011,1987.2,1986.8,7.83684365]
[1771236395046,0.0011,1987.2,1986.8,0.53218551]
[1771236395251,0.54469762,1987.2,1986.7,0.001]
[1771236396775,0.54359762,1987.1,1986.7,0.001]
[1771236396945,0.54359762,1986.8,1986.0,0.53118551]
[1771236397350,0.16366484,1986.6,1985.8,0.53118551]
[1771236397862,0.71,1986.7,1986.1,0.53118551]
[1771236398890,0.71,1986.7,1986.1,0.53218551]
[1771236401495,0.91201671,1986.7,1986.1,0.001]
[1771236406799,0.91201671,1986.7,1986.1,0.53830635]
[1771236407517,0.2020812,1986.6,1986.0,0.001]
[1771236411017,0.2020812,1986.6,1986.1,0.001]
[1771236411197,0.2020812,1986.6,1985.8,0.51211134]
[1771236411400,0.7111,1986.7,1986.0,0.51111134]
[1771236412122,0.7111,1986.7,1986.1,0.51111134]
[1771236416491,1.22361016,1986.7,1986.1,0.51111134]
[1771236416688,0.51251016,1986.6,1985.8,7.82250747]
[1771236416910,0.51251016,1986.6,1985.9,0.51111134]
[1771236417712,0.7111,1986.7,1985.9,0.51111134]
[1771236418418,1.22361016,1986.7,1985.9,0.51111134]
[1771236421122,0.51251016,1986.6,1985.9,0.51111134]
[1771236422623,0.0011,1986.7,1985.9,0.51111134]
[1771236422818,0.712,1986.5,1985.9,0.51111134]
[1771236423399,0.712,1986.5,1986.1,0.51111134]
[1771236423810,0.0011,1986.6,1986.3,0.51111134]
[1771236424194,0.0011,1986.8,1986.4,0.51111134]
[1771236425223,0.0011,1986.8,1986.4,7.82150747]
[1771236425405,0.712,1987.1,1986.7,0.51111134]
[1771236425601,0.0011,1987.2,1986.7,0.51111134]
[1771236427109,0.0011,1987.2,1986.7,0.50636659]
[1771236427902,0.0011,1987.2,1986.7,0.51111134]
[1771236428298,0.0011,1987.2,1986.9,0.51111134]
[1771236431906,0.0011,1987.2,1986.6,7.82150747]
[1771236432116,0.0011,1987.2,1986.7,0.51111134]
[1771236433201,0.51361016,1987.2,1986.5,1.49711134]
[1771236433402,0.0011,1987.2,1986.7,0.51111134]
[1771236435826,0.0011,1987.2,1986.8,0.001]
[1771236436011,0.0011,1987.1,1986.8,0.52445477]
[1771236436634,0.0011,1987.1,1986.8,0.001]
[1771236437911,0.0011,1987.1,1986.8,0.52445477]
[1771236440829,0.0011,1987.1,1986.7,0.001]
[1771236441012,0.51931746,1987.1,1986.7,0.001]
[1771236442223,0.51931746,1987.1,1986.3,0.52345477]
[1771236444028,0.51821746,1986.9,1986.0,0.001]
[1771236444227,0.51821746,1986.8,1986.0,0.52445477]
[1771236444535,0.51821746,1986.6,1986.0,0.001]
[1771236444715,7.31039613,1986.9,1986.0,0.001]
[1771236444716,0.51821746,1986.4,1986.0,0.001]
[1771236446038,0.71,1986.5,1986.0,0.52445477]
[1771236446337,0.71,1986.5,1986.0,0.001]
[1771236447441,0.71,1986.5,1986.0,0.52445477]
[1771236448628,0.71,1986.5,1986.1,0.001]
[1771236450427,0.71,1986.5,1986.1,7.8348509]
[1771236450644,0.71,1986.7,1986.2,0.52345477]
[1771236451347,1.22821746,1986.7,1986.1,0.52445477]
[1771236452223,1.22821746,1986.7,1986.1,0.001]
[1771236454019,0.71,1986.7,1986.1,0.001]
[1771236454218,0.51821746,1986.6,1986.1,0.001]
[1771236455020,0.71,1986.7,1986.1,0.001]
[1771236455343,0.51821746,1986.6,1986.1,0.001]
[1771236456628,0.71,1986.7,1986.1,0.52445477]
[1771236457748,0.71,1986.7,1986.2,7.8338509]
[1771236458521,0.71,1986.7,1986.4,7.8338509]
[1771236458833,0.71,1986.7,1986.2,7.8338509]
[1771236460650,0.71,1986.7,1986.2,7.8348509]
[1771236460854,0.0011,1986.6,1986.2,7.8348509]
[1771236463145,0.51931746,1986.6,1986.0,0.001]
[1771236466544,0.51931746,1986.6,1986.0,0.51558902]
[1771236467060,0.0011,1986.6,1986.0,0.51558902]
[1771236467229,0.51761929,1986.6,1986.0,0.51558902]
[1771236469461,0.51761929,1986.6,1985.9,0.001]
[1771236471559,0.51761929,1986.6,1985.9,7.31139613]
[1771236472539,0.51761929,1986.6,1985.9,7.85103846]
[1771236473967,0.51761929,1986.6,1986.0,7.3103486]
[1771236474262,0.0011,1986.6,1986.1,0.53964233]
[1771236475860,0.0011,1986.5,1986.1,0.53964233]
[1771236480457,0.0011,1986.6,1986.3,0.53964233]
[1771236480662,0.0011,1986.8,1986.4,7.84999093]
[1771236481050,0.0011,1987.0,1986.6,7.84999093]
[1771236481682,0.0011,1987.0,1986.7,0.53964233]
[1771236482756,0.0011,1987.0,1986.7,7.3103486]
[1771236483089,0.0011,1987.0,1986.5,7.84999093]
[1771236488186,0.0011,1986.9,1986.5,7.84999093]
[1771236490684,0.0011,1986.9,1986.6,0.53964233]
[1771236492485,0.0011,1987.1,1986.7,7.84999093]
[1771236492693,0.0011,1987.2,1986.8,0.53964233]
[1771236498600,0.0011,1987.2,1986.7,7.3103486]
[1771236498971,0.0011,1987.2,1986.7,7.85804592]
[1771236500901,0.0011,1987.1,1986.7,7.85804592]
[1771236504114,0.0011,1987.2,1986.8,0.54769732]
[1771236504413,0.0011,1987.2,1986.9,7.85804592]
[1771236504616,0.0011,1987.2,1986.9,7.3103486]
[1771236505708,0.0011,1987.2,1986.8,1.56869732]
[1771236507806,0.0011,1987.3,1986.8,1.56869732]
[1771236510394,0.0011,1987.3,1986.9,7.3103486]
[1771236511223,0.0011,1987.3,1986.8,1.56869732]
[1771236511593,0.0011,1987.3,1987.0,7.3103486]
[1771236512795,0.0011,1987.3,1986.8,1.021]
[1771236512996,0.51383512,1987.9,1987.3,0.54769732]
[1771236513226,0.0011,1987.9,1987.5,7.3103486]
[1771236514106,0.51383512,1988.0,1987.5,7.3103486]
[1771236514507,0.51383512,1988.0,1987.7,7.3103486]
[1771236515528,0.51383512,1988.2,1987.7,7.3103486]
[1771236517739,0.51383512,1988.2,1987.9,7.3103486]
[1771236519240,0.0011,1988.5,1988.1,7.3103486]
[1771236519444,0.51383512,1989.0,1988.4,14.6206972]
[1771236519747,0.907,1989.2,1988.8,7.3103486]
[1771236520431,1.41973512,1989.2,1988.8,5.94679724]
[1771236521440,2.536037,1989.3,1988.8,5.94679724]
[1771236521642,0.51273512,1989.3,1988.8,5.94679724]
[1771236522728,0.51273512,1988.8,1988.0,0.54769732]
[1771236522942,0.51273512,1988.8,1988.2,7.3103486]
[1771236525945,0.51273512,1988.8,1987.8,7.3103486]
[1771236525946,0.51615526,1989.2,1988.6,7.3103486]
[1771236526540,0.0011,1988.7,1988.6,7.3103486]
[1771236526836,0.51615526,1989.2,1988.6,7.3103486]
[1771236527411,0.0011,1989.0,1988.6,7.3103486]
[1771236530523,0.53610693,1989.0,1988.4,7.3103486]
[1771236531735,0.53610693,1989.0,1988.3,1.036]
[1771236532745,0.53610693,1989.0,1988.2,7.88591699]
[1771236533243,0.53610693,1989.0,1988.4,7.3103486]
[1771236534649,0.0011,1989.0,1988.6,7.3103486]
[1771236534947,0.53610693,1989.0,1988.6,7.3103486]
[1771236535742,0.53610693,1989.0,1988.2,7.3103486]
[1771236535935,0.53610693,1989.0,1988.1,8.33731966]
[1771236536130,0.53610693,1989.0,1988.1,7.29531966]
[1771236537450,0.53610693,1989.0,1988.2,0.57556839]
[1771236537624,18.5289913,1991.5,1988.7,7.29531966]
[1771236537625,1.05100693,1989.4,1988.7,7.29531966]
[1771236537954,1.05100693,1989.4,1988.4,0.57556839]
[1771236539845,0.0011,1988.9,1988.4,0.57556839]
[1771236540016,0.0011,1989.0,1988.4,0.57556839]
[1771236540921,0.0011,1989.2,1988.4,0.57556839]
[1771236542518,0.53500693,1990.1,1988.8,0.57556839]
[1771236542748,0.53500693,1989.9,1988.9,0.57556839]
[1771236543945,0.53500693,1989.7,1988.6,0.57556839]
[1771236544348,0.53500693,1989.5,1988.6,0.57556839]
[1771236545318,0.53500693,1989.8,1988.8,0.57556839]
[1771236547030,0.516,1989.9,1988.8,0.57556839]
[1771236548226,1.44100693,1990.0,1988.8,0.57556839]
[1771236548227,1.05100693,1990.0,1988.8,0.57556839]
[1771236548852,0.53500693,1989.9,1988.8,0.57556839]
[1771236552260,0.0011,1989.8,1989.0,0.57556839]
[1771236553247,0.53610693,1989.8,1989.0,0.57556839]
[1771236553935,0.53610693,1989.8,1988.9,0.53247784]
[1771236558241,0.5202703,1989.8,1988.9,0.53247784]
[1771236562470,0.0011,1989.8,1989.1,0.53147784]
[1771236562871,0.5202703,1990.1,1989.1,0.18685624]
[1771236563074,0.0011,1990.1,1989.2,0.53147784]
[1771236563680,4.373178,1990.5,1989.3,0.53147784]
[1771236563979,1.9411703,1990.5,1989.9,7.28228738]
[1771236564383,0.5191703,1990.5,1989.9,7.28228738]
[1771236564751,0.5191703,1990.5,1990.1,7.28228738]
[1771236565854,0.5191703,1990.5,1989.8,0.53147784]
[1771236566076,0.0011,1989.9,1989.8,0.53147784]
[1771236566259,0.5191703,1990.5,1989.8,0.53147784]
[1771236566669,0.0011,1990.1,1989.8,0.53147784]
[1771236566854,0.5191703,1990.5,1989.8,0.53147784]
[1771236567050,2.6233123,1990.7,1989.8,0.53147784]
[1771236567251,0.5191703,1990.9,1989.8,0.53147784]
[1771236567498,1.422,1991.1,1990.0,0.53147784]
[1771236567653,0.5191703,1991.0,1990.0,0.53147784]
[1771236567853,0.6215703,1991.7,1990.0,0.53147784]
[1771236568071,9.46541943,1992.2,1990.0,0.53147784]
[1771236568072,11.08288,1991.4,1990.0,0.53147784]
[1771236568406,1.422,1991.6,1990.0,0.53147784]
[1771236568407,0.5191703,1991.1,1990.0,0.53147784]
[1771236569901,0.5191703,1991.1,1989.7,1.035]
[1771236569902,0.5191703,1990.7,1989.8,0.53147784]
[1771236570090,0.5191703,1990.6,1989.8,0.53147784]
[1771236570293,0.5191703,1990.4,1989.6,0.53147784]
[1771236577996,0.0011,1990.3,1989.6,0.53147784]
[1771236578384,0.0011,1990.4,1989.6,0.53147784]
[1771236578605,0.5202703,1990.4,1989.6,0.53147784]
[1771236579323,0.0011,1990.4,1989.6,0.53147784]
[1771236581293,0.0011,1990.6,1989.9,0.53147784]
[1771236584203,0.1024,1991.7,1989.9,0.53147784]
[1771236584204,1.421,1991.1,1989.9,0.55409961]
[1771236584692,0.53578265,1991.4,1990.3,0.55409961]
[1771236584899,7.126301,1991.3,1990.3,0.55409961]
[1771236585106,6.238196,1991.3,1990.3,0.55409961]
[1771236585304,0.53578265,1991.3,1990.3,0.55409961]
[1771236586738,1.94408027,1991.5,1990.3,0.55409961]
[1771236586900,0.52308027,1991.3,1990.3,0.55409961]
[1771236589019,0.516,1991.4,1990.3,0.55409961]
[1771236589226,0.52308027,1991.4,1990.5,0.52679479]
[1771236589425,0.52308027,1991.3,1990.5,0.52679479]
[1771236589804,1.25547435,1991.3,1990.5,0.52679479]
[1771236590000,0.52308027,1991.2,1990.5,0.52679479]
[1771236590399,0.52418027,1991.2,1990.5,0.52679479]
[1771236591296,0.0011,1991.2,1990.5,0.52679479]
[1771236594007,0.0011,1991.2,1990.8,7.27609721]
[1771236595526,1.77837247,1991.6,1991.0,7.27609721]
[1771236595844,2.952642,1991.4,1991.0,7.27609721]
[1771236596337,0.52308027,1991.3,1990.8,7.27609721]
[1771236596551,0.52308027,1991.3,1990.7,7.27609721]
[1771236597943,0.52308027,1991.3,1990.8,7.27602937]
[1771236600939,0.52308027,1991.5,1990.8,7.80282416]
[1771236601141,0.684,1991.3,1990.8,7.80282416]
[1771236601339,0.684,1991.3,1990.8,7.27602937]
[1771236601526,0.684,1991.3,1990.6,0.52679479]
[1771236601728,0.52308027,1991.2,1990.6,7.27602937]
[1771236602019,0.52308027,1991.2,1990.4,7.27602937]
[1771236602659,0.52308027,1991.0,1990.4,7.27602937]
[1771236602955,0.52308027,1991.0,1989.7,0.29025624]
[1771236602956,0.52308027,1990.8,1990.0,7.80282416]
[1771236603119,1.20708027,1990.7,1990.0,7.27602937]
[1771236604982,0.52308027,1990.6,1990.0,7.27602937]
[1771236605254,1.93984321,1990.7,1989.7,7.80382416]
[1771236605255,0.52308027,1990.4,1989.7,7.80382416]
[1771236605616,0.52308027,1990.4,1990.0,0.001]
[1771236606433,0.684,1990.3,1990.0,0.001]
[1771236607553,7.408552,1990.5,1990.0,0.001]
[1771236607743,0.684,1990.4,1990.0,0.001]
[1771236609147,0.52308027,1990.6,1990.0,0.001]
[1771236609336,0.685,1990.4,1990.1,7.27602937]
[1771236610342,0.685,1990.4,1990.0,0.001]
[1771236612955,0.523,1990.7,1990.1,0.52679479]
[1771236613861,0.9061,1991.1,1990.1,0.66779611]
[1771236614151,0.6861,1991.1,1990.3,0.66779611]
[1771236618255,1.31166916,1991.1,1990.3,0.66779611]
[1771236618479,2.56729542,1991.1,1990.3,0.66779611]
[1771236618868,0.62556916,1991.0,1990.3,0.66779611]
[1771236619168,0.62556916,1991.0,1990.1,1.70479611]